Cogmind - Beta 12 @@@ ROGUE MODE // 2023.10.06 @ 13:56:09 Player: Figgis Result: Self-destructed Performance ------------- Evolutions (3) 1500 Regions Visited (8) 1600 Robots Destroyed (57) 285 Value Destroyed (1777) 1777 Prototype IDs (1) 20 Alien Tech Used (0) 0 Bonus (420) 420 TOTAL SCORE: 5602 Bonus ------- Follower Combat Kills 120 Aligned with FarCom 300 Cogmind --------- Core Integrity 490/700 Matter 300/300 Energy 100/100 System Corruption 0% Temperature Cool (0) Movement Core (700) Ox13 Location -7/Factory Parts ------- > --- POWER (1) -------- (None) > --- PROPULSION (4) --- (None) > --- UTILITY (5) ------ High-capacity Storage Unit Improved Sensor Array Signal Interpreter > --- WEAPON (3) ------- (None) > --- INVENTORY (20) --- Light Deuterium Engine Light Deuterium Engine Nuclear Core Aluminum Leg Aluminum Leg Aluminum Leg Aluminum Leg Large Storage Unit High-capacity Matter Pod (200) ECM Suite Skeleton Box Advanced Beam Rifle Advanced Beam Rifle Heavy Particle Cannon Heavy Particle Cannon Heavy Particle Cannon Heavy Particle Cannon Heavy Ion Cannon Peak State ------------ > --- POWER ------------ Light Nuclear Core > --- PROPULSION ------- Aluminum Leg Aluminum Leg Aluminum Leg Aluminum Leg > --- UTILITY ---------- High-capacity Storage Unit Improved Sensor Array Signal Interpreter Light Armor Plating Reactive Plating > --- WEAPON ----------- Advanced Beam Rifle Greatsword > --- INVENTORY -------- Light Deuterium Engine Light Deuterium Engine Nuclear Core Aluminum Leg Aluminum Leg Aluminum Leg Aluminum Leg Large Storage Unit High-capacity Matter Pod ECM Suite Skeleton Box Advanced Beam Rifle Advanced Beam Rifle Heavy Particle Cannon Heavy Particle Cannon Heavy Particle Cannon Heavy Particle Cannon Heavy Ion Cannon [Rating: 32] Favorites ----------- Power Ion Engine Engine Ion Engine Power Core Light Nuclear Core Propulsion Light Treads Treads Light Treads Leg Aluminum Leg Wheel Compact Wheel Utility Large Storage Unit Device Improved Sensor Array Storage Large Storage Unit Processor Targeting Computer Hackware Hacking Suite Protection Light Armor Plating Weapon Heavy Assault Rifle Energy Gun Advanced Beam Rifle Energy Cannon Heavy Particle Cannon Ballistic Gun Heavy Assault Rifle Impact Weapon Heavy Mace Slashing Weapon Greatsword Build | -11 -10 -10 -9 -9 -9 -8 -8 -7 ------- Run | Jun Mat Min Mat Min Exi Min Mat Fac Slots Evolved 6 | . . . 2 . . . 2 2 Power . | . . . . . . . . . Propulsion 2 | . . . 1 . . . 1 . Utility 3 | . . . 1 . . . . 2 Weapon 1 | . . . . . . . 1 . Parts Attached 42 | 6 9 . 2 . 1 1 13 10 Power 4 | 1 . . 1 . . . 1 1 Engine 3 | 1 . . 1 . . . 1 . Core 1 | . . . . . . . . 1 Reactor . | . . . . . . . . . Propulsion 12 | 2 1 . . . . 1 7 1 Treads 5 | 2 1 . . . . . 2 . Leg 6 | . . . . . . 1 4 1 Wheel 1 | . . . . . . . 1 . Hover . | . . . . . . . . . Flight . | . . . . . . . . . Utility 12 | 1 4 . 1 . . . 1 5 Device 1 | . . . . . . . 1 . Storage 5 | 1 3 . . . . . . 1 Processor 2 | . 1 . . . . . . 1 Hackware 1 | . . . 1 . . . . . Protection 3 | . . . . . . . . 3 Artifact . | . . . . . . . . . Weapon 14 | 2 4 . . . 1 . 4 3 Energy Gun 5 | 2 1 . . . . . 1 1 Energy Cannon 2 | . . . . . . . 2 . Ballistic Gun 5 | . 3 . . . 1 . 1 . Ballistic Cannon . | . . . . . . . . . Launcher . | . . . . . . . . . Special Weapon . | . . . . . . . . . Impact Weapon 1 | . . . . . . . . 1 Slashing Weapon 1 | . . . . . . . . 1 Piercing Weapon . | . . . . . . . . . Special Melee Weapon . | . . . . . . . . . Unidentified Prototypes 1 | . . . . . . . 1 . Parts Lost 20 | . 1 . 1 . . . 8 10 Power 2 | . . . . . . . 1 1 Propulsion 10 | . . . . . . . 6 4 Utility 4 | . . . . . . . 1 3 Weapon 4 | . 1 . 1 . . . . 2 Highest Loss Streak 9 | . 1 . 1 . . . 4 9 To Critical Strikes . | . . . . . . . . . Average Slot Usage (%) 91 | . 93 100 82 77 88 94 89 91 Engine 9 | . 14 14 11 11 11 11 9 2 Treads 16 | . 27 28 22 22 22 22 12 1 Leg 9 | . . . . . . 6 14 27 Device 1 | . . . . . . . 1 7 Storage 10 | . 13 14 11 11 11 11 9 7 Processor 9 | . 9 14 11 11 11 11 7 7 Hackware 4 | . . . 9 11 11 11 7 . Protection 3 | . . . . . . . . 13 Energy Gun 5 | . 10 . . . . . 8 6 Ballistic Gun 15 | . 16 28 18 11 22 22 15 2 Naked Turns . | . . . . . . . . . Heaviest Build 66 | 13 31 31 31 27 30 30 37 66 Greatest Support 40 | 40 40 40 40 40 40 40 40 40 Greatest Overweight (x) 20 | 1 . . . . . . 1 20 Average Overweight (x) . | . . . . . . . . 1 Largest Inventory Capacity 20 | 8 15 15 15 15 15 15 15 20 Average Capacity 15 | 6 14 15 15 15 15 15 15 19 Most Carried 19 | 5 15 15 15 15 15 15 15 19 Average Carried 13 | 2 6 14 15 15 14 14 14 17 Final Capacity 20 | 8 15 15 15 15 15 15 15 20 Final Carried 18 | 2 14 15 15 15 15 15 15 18 Class Distribution -------------------- 60% | Mutant 22% | Scavenger-Assassin 12% | Scavenger-Skirmisher 4% | Skirmisher Dominant Class ---------------- Mutant | -10/Materials Mutant | -10/Mines Mutant | -9/Materials Mutant | -9/Mines Mutant | -9/Exiles Mutant | -8/Mines Scavenger-Skirmisher | -8/Materials Scavenger-Assassin | -7/Factory Resources | -11 -10 -10 -9 -9 -9 -8 -8 -7 ----------- Run | Jun Mat Min Mat Min Exi Min Mat Fac Matter Collected 1504 | 246 387 189 35 16 . 20 448 163 Remotely . | . . . . . . . . . Salvage Created 2264 | . 497 141 68 . . . 814 744 Parts 115 | 2 35 7 4 . . . 34 33 Haulers Intercepted . | . . . . . . . . . Recyclers Shooed 1 | . . . . . . . . 1 Parts Field Recycled . | . . . . . . . . . Retrieved Matter . | . . . . . . . . . Parts Self-Destructed . | . . . . . . . . . Prevented . | . . . . . . . . . Kills | -11 -10 -10 -9 -9 -9 -8 -8 -7 ------- Run | Jun Mat Min Mat Min Exi Min Mat Fac Combat Hostiles Destroyed 40 | . 7 3 1 . . . 17 12 Melee 6 | . . . . . . . . 6 Guns 34 | . 7 3 1 . . . 17 6 Classes Destroyed 9 | 1 5 . 1 . . . 1 1 Builder 2 | . . . . . . . 1 1 Tunneler 1 | 1 . . . . . . . . Recycler 5 | . 2 . . . . . 1 2 Operator 3 | . 1 . 1 . . . . 1 Watcher 6 | . 3 . . . . . 2 1 Swarmer 10 | . 3 . . . . . 4 3 Grunt 23 | . 4 3 . . . . 10 6 Sentry 5 | . . . 1 . . . 3 1 Programmer 2 | . . . . . . . . 2 Best Kill Streak 5 | 1 3 2 2 . . . 5 4 Combat Bots Only 4 | . 3 2 1 . . . 4 4 Max Kills in Single Turn 2 | 1 1 2 1 . . . 2 1 Gunslinging 1 | . . 1 . . . . . . Exploded . | . . . . . . . . . Melee 1 | . . . . . . . . 1 Uniques/NPCs Destroyed . | . . . . . . . . . Combat | -11 -10 -10 -9 -9 -9 -8 -8 -7 -------- Run | Jun Mat Min Mat Min Exi Min Mat Fac Damage Taken 3211 | . 408 218 182 . . . 1063 1340 Core 485 | . 82 34 25 . . . 134 210 Absorbed by Shields . | . . . . . . . . . Regen/Repaired (Parts) 150 | . 150 . . . . . . . Core Remaining (%) 80 | 100 . 53 . . . 93 75 . Volleys Fired 157 | . 42 14 9 . . . 52 40 Largest 3 | . 2 2 2 . . . 3 2 Hottest 161 | . 80 46 46 . . . 161 86 Shots Fired 321 | . 82 28 12 . . . 142 57 Gun 309 | . 82 28 12 . . . 130 57 Cannon 12 | . . . . . . . 12 . Launcher . | . . . . . . . . . Special . | . . . . . . . . . Kinetic 184 | . 40 28 12 . . . 87 17 Thermal 114 | . 19 . . . . . 55 40 Explosive . | . . . . . . . . . Electromagnetic 23 | . 23 . . . . . . . Robot Hit Streak 12 | . 6 7 6 . . . 11 12 Robot Miss Streak 7 | . 4 1 2 . . . 7 7 Penetration Max . | . . . . . . . . . Secondary Targets 3 | . . 1 . . . . 2 . Max Gunslinging Chain 1 | . . 1 . . . . 1 . Shots Hit Robots 223 | . 51 21 7 . . . 86 58 Core Hits 97 | . 19 6 3 . . . 42 27 Critical Kills 2 | . . . . . . . 1 1 Critical Parts Destroyed 2 | . . 1 . . . . . 1 Critical Strikes 10 | . . 1 . . . . 2 7 Burn 2 | . . . . . . . 1 1 Destroy 2 | . . 1 . . . . 1 . Smash 2 | . . . . . . . . 2 Sever 4 | . . . . . . . . 4 Melee Attacks 28 | . . . . . . . . 28 Impact 8 | . . . . . . . . 8 Slashing 20 | . . . . . . . . 20 Piercing . | . . . . . . . . . Sneak Attacks 3 | . . . . . . . . 3 Combat Hostiles . | . . . . . . . . . Follow-up Attacks . | . . . . . . . . . Damage Inflicted 4891 | 1 693 308 103 . . . 1761 2025 Guns 3442 | . 693 308 103 . . . 1557 781 Cannons 200 | . . . . . . . 200 . Explosions . | . . . . . . . . . Melee 1244 | . . . . . . . . 1244 Ramming 5 | 1 . . . . . . 4 . Kinetic 1973 | . 339 308 103 . . . 997 226 Thermal 1440 | . 125 . . . . . 760 555 Explosive . | . . . . . . . . . Electromagnetic 229 | . 229 . . . . . . . Impact 411 | . . . . . . . . 411 Slashing 833 | . . . . . . . . 833 Piercing . | . . . . . . . . . Highest Corruption . | . . . . . . . . . Average Corruption . | . . . . . . . . . Corruption Purged . | . . . . . . . . . Corruption Blocked . | . . . . . . . . . Overload Shots . | . . . . . . . . . Overflow Damage 220 | . . . . . . . . 220 Projectiles . | . . . . . . . . . Explosions . | . . . . . . . . . Melee 220 | . . . . . . . . 220 Knockbacks 1 | . . . . . . . . 1 Impact 1 | . . . . . . . . 1 Kinetic . | . . . . . . . . . Secondary . | . . . . . . . . . Self-Inflicted Damage . | . . . . . . . . . Shots . | . . . . . . . . . Rammed . | . . . . . . . . . Targets Rammed 2 | 1 . . . . . . 1 . Kicked 1 | . . . . . . . 1 . Crushed 1 | 1 . . . . . . . . Highest Temperature 423 | . 304 22 . . . . 423 132 Average Temperature 99 | . 123 6 . . . . 127 35 Received Heat Transfer 1293 | . 192 138 75 . . . 513 375 Effects 4 | . 1 . . . . . 3 . Energy Bleed 1 | . . . . . . . 1 . Interference 1 | . 1 . . . . . . . Matter Decay 1 | . . . . . . . 1 . Short Circuit 1 | . . . . . . . 1 . Siege Activations . | . . . . . . . . . Robots Corrupted . | . . . . . . . . . Combat Hostiles . | . . . . . . . . . Parts Fried 7 | . 2 . . . . . . 5 Impact Corruptions 6 | . . . . . . . . 6 Robots Melted . | . . . . . . . . . Combat Hostiles . | . . . . . . . . . Parts Melted 5 | . 2 . . . . . . 3 Heat Transferred 2705 | . 300 . . . . . 1406 999 Parts Sabotaged . | . . . . . . . . . Parts Stolen . | . . . . . . . . . Parts Stripped . | . . . . . . . . . Power Chain Reactions . | . . . . . . . . . Missiles Intercepted . | . . . . . . . . . Alert | -11 -10 -10 -9 -9 -9 -8 -8 -7 ------- Run | Jun Mat Min Mat Min Exi Min Mat Fac Peak Influence 314 | . 150 257 223 86 . . 314 253 Initial 102 | . 3 50 100 86 . . . 102 Average 78 | . 46 123 155 86 . . 147 85 Maximum Alert Level 1 | . . 1 1 . . . 1 1 Low Security (%) 88 | 100 100 93 77 100 . 100 60 90 Level 1 11 | . . 6 22 . . . 39 9 Level 2 . | . . . . . . . . . Level 3 . | . . . . . . . . . Level 4 . | . . . . . . . . . Level 5 . | . . . . . . . . . High Security . | . . . . . . . . . Max Security . | . . . . . . . . . Squads Dispatched 8 | . 1 . . . . . 2 5 Investigation . | . . . . . . . . . Extermination 2 | . . . . . . . . 2 Reinforcement 5 | . 1 . . . . . 2 2 Assault . | . . . . . . . . . Garrison 1 | . . . . . . . . 1 Intercept . | . . . . . . . . . Searches Triggered . | . . . . . . . . . Construction Impeded . | . . . . . . . . . Haulers Reinforced . | . . . . . . . . . Active Scanning Responses . | . . . . . . . . . Cargo Convoy Interrupts 1 | . . . . . . . . 1 Stealth | -11 -10 -10 -9 -9 -9 -8 -8 -7 --------- Run | Jun Mat Min Mat Min Exi Min Mat Fac Distress Signals 5 | . . . 1 . . . 4 . Communications Jammed . | . . . . . . . . . Distress Signals . | . . . . . . . . . Times Spotted 83 | . 15 6 6 . . . 34 22 Peak Tracking Total 6 | . 3 2 2 . . . 6 5 Tactical Retreats 6 | . . . . . . . 5 1 Traps | -11 -10 -10 -9 -9 -9 -8 -8 -7 ------- Run | Jun Mat Min Mat Min Exi Min Mat Fac Traps Triggered . | . . . . . . . . . Indirectly . | . . . . . . . . . Trap Hack Attempts . | . . . . . . . . . Triggered . | . . . . . . . . . Disarmed . | . . . . . . . . . Reprogrammed . | . . . . . . . . . Reused . | . . . . . . . . . Traps Extracted . | . . . . . . . . . Installed . | . . . . . . . . . Triggered 1 | . . . . . . . . 1 Machines | -11 -10 -10 -9 -9 -9 -8 -8 -7 ---------- Run | Jun Mat Min Mat Min Exi Min Mat Fac Machines Disabled 3 | . 1 1 . . . . 1 . Max in Single Turn 1 | . 1 . . . . . 1 . Machines Repaired . | . . . . . . . . . Machines Sabotaged . | . . . . . . . . . Overloaded Fab Kills . | . . . . . . . . . Hacking | -11 -10 -10 -9 -9 -9 -8 -8 -7 --------- Run | Jun Mat Min Mat Min Exi Min Mat Fac Machines Accessed 10 | . 6 . 1 . . . 2 1 Terminals 9 | . 5 . 1 . . . 2 1 Fabricators . | . . . . . . . . . Repair Stations 1 | . 1 . . . . . . . Recycling Units . | . . . . . . . . . Scanalyzers . | . . . . . . . . . Garrison Access . | . . . . . . . . . Total Hacks 21 | . 12 . 3 . . . 4 2 Successful 6 | . 4 . 1 . . . 1 . Failed 15 | . 8 . 2 . . . 3 2 Catastrophic 6 | . 4 . 1 . . . 1 . Database Lockouts . | . . . . . . . . . Manual 17 | . 9 . 3 . 1 . 2 2 Terminals 17 | . 8 . 3 . . . 4 2 Fabricators . | . . . . . . . . . Repair Stations 4 | . 4 . . . . . . . Recycling Units . | . . . . . . . . . Scanalyzers . | . . . . . . . . . Garrison Access . | . . . . . . . . . Terminal Hacks 2 | . . . 1 . . . 1 . Branch Access Points 2 | . . . 1 . . . 1 . Fabricator Hacks . | . . . . . . . . . Repair Station Hacks 4 | . 4 . . . . . . . Scan Component 2 | . 2 . . . . . . . Repair 2 | . 2 . . . . . . . Recycling Unit Hacks . | . . . . . . . . . Scanalyzer . | . . . . . . . . . Garrison Access Hacks . | . . . . . . . . . Unauthorized Hacks . | . . . . . . . . . Terminals . | . . . . . . . . . Fabricators . | . . . . . . . . . Repair Stations . | . . . . . . . . . Recycling Units . | . . . . . . . . . Scanalyzers . | . . . . . . . . . Garrison Access . | . . . . . . . . . Data Cores Recovered 1 | . . . 1 . . . . . Used 1 | . . . 1 . . . . . Hacking Detections 8 | . 5 . 1 . . . 1 1 Full Trace Events . | . . . . . . . . . Feedback Events . | . . . . . . . . . Feedback Blocked . | . . . . . . . . . Robot Schematics Acquired . | . . . . . . . . . Robots Built . | . . . . . . . . . Authchips . | . . . . . . . . . Time . | . . . . . . . . . Total Robot Build Rating . | . . . . . . . . . Part Schematics Acquired . | . . . . . . . . . Parts Built . | . . . . . . . . . Authchips . | . . . . . . . . . Time . | . . . . . . . . . Total Part Build Rating . | . . . . . . . . . Parts Repaired 2 | . 2 . . . . . . . Time 52 | . 52 . . . . . . . Parts Recycled . | . . . . . . . . . Recycled Matter . | . . . . . . . . . Retrieved Matter . | . . . . . . . . . Retrieved Components . | . . . . . . . . . Parts Scanalyzed . | . . . . . . . . . Part Schematics Acquired . | . . . . . . . . . Parts Damaged . | . . . . . . . . . Bothacking | -11 -10 -10 -9 -9 -9 -8 -8 -7 ------------ Run | Jun Mat Min Mat Min Exi Min Mat Fac Used RIF Installer . | . . . . . . . . . Robots Hacked . | . . . . . . . . . Non-combat . | . . . . . . . . . Combat . | . . . . . . . . . Robot Hacks Applied . | . . . . . . . . . Relay Couplers Released . | . . . . . . . . . Fabnet Peak Effective % . | . . . . . . . . . Robots Rewired . | . . . . . . . . . Allies Hacked . | . . . . . . . . . Hacks Repelled . | . . . . . . . . . Allies | -11 -10 -10 -9 -9 -9 -8 -8 -7 -------- Run | Jun Mat Min Mat Min Exi Min Mat Fac Total Allies 2 | . . 2 . . . . . . Largest Group 2 | . . 2 2 1 1 . . . Highest-Rated Group 43 | . . 43 43 31 31 . . . Highest-Rated Ally 31 | . . 31 31 31 31 . . . Total Orders . | . . . . . . . . . Ally Attacks 25 | . . 8 17 . . . . . Total Damage 367 | . . 97 270 . . . . . Kills 7 | . . 3 4 . . . . . Allies Corrupted . | . . . . . . . . . Allies Melted . | . . . . . . . . . Intel | -11 -10 -10 -9 -9 -9 -8 -8 -7 ------- Run | Jun Mat Min Mat Min Exi Min Mat Fac Robot Analysis Total . | . . . . . . . . . Derelict Logs Recovered 1 | . . 1 . . . . . . Drone Launches . | . . . . . . . . . Drone Recoveries . | . . . . . . . . . Exploration | -11 -10 -10 -9 -9 -9 -8 -8 -7 ------------- Run | Jun Mat Min Mat Min Exi Min Mat Fac Turns Passed 5553 | 49 1136 338 148 48 796 788 972 1278 Spaces Moved 2547 | 30 541 185 78 31 496 492 367 327 Core 17 | 14 . . . . . . . 3 Treads 2016 | 16 541 185 78 31 496 492 177 . Legs 514 | . . . . . . . 190 324 Wheels . | . . . . . . . . . Hover . | . . . . . . . . . Flight . | . . . . . . . . . Fastest Speed 50 | 50 160 160 160 160 160 160 160 190 Average Speed 166 | 112 160 160 160 160 160 160 178 198 Slowest Speed 1050 | 160 160 160 160 160 160 160 240 1050 Overloaded Moves . | . . . . . . . . . Propulsion Burnouts . | . . . . . . . . . Robots Hopped . | . . . . . . . . . Cave-ins Triggered . | . . . . . . . . . Exploration Rate (%) 41 | 3 81 54 12 8 90 92 25 12 Regions Visited 8 Branch Regions 4 Pre-discovered Areas 1 | . . 1 . . . . . . Known Exits Taken 1 | . . . 1 . . . . . Unknown Exits Taken 7 | 1 1 1 . 1 1 1 1 . Scrap Searched 3 | . . 1 . 1 . 1 . . Spaces Dug . | . . . . . . . . . Terrain Destroyed 3 | . . . . . . . 3 . Melee . | . . . . . . . . . Projectile 3 | . . . . . . . 3 . AOE . | . . . . . . . . . Terrain Rammed . | . . . . . . . . . Walls Destroyed . | . . . . . . . . . Machines Disabled . | . . . . . . . . . Actions | -11 -10 -10 -9 -9 -9 -8 -8 -7 --------- Run | Jun Mat Min Mat Min Exi Min Mat Fac Total 3508 | 44 731 199 89 30 499 493 576 847 Wait 651 | 1 105 . . . . . 120 425 Move 2540 | 30 540 184 77 30 495 491 366 327 Hop . | . . . . . . . . . Pick Up 63 | 6 28 1 . . 2 1 14 11 Fast Attach 11 | 3 1 . 1 . . . 5 1 Attach 24 | 3 4 . . . 1 1 8 7 Detach 1 | . 1 . . . . . . . Swap 7 | . 4 . 1 . . . . 2 Drop 25 | 1 6 . 1 . 1 . 10 6 Fire 157 | . 42 14 9 . . . 52 40 Melee 28 | . . . . . . . . 28 Ram . | . . . . . . . . . Kick 1 | . . . . . . . 1 . Crush . | . . . . . . . . . Escape Stasis . | . . . . . . . . . Rewire . | . . . . . . . . . Trap . | . . . . . . . . . Miscellaneous . | . . . . . . . . . Route ------- -11/Junkyard -10/Materials (discovered 3 exits: *Mat x2 / [*Min]) -10/Mines -9/Materials (discovered 3 exits: *Min / *Sto x2) -9/Mines -9/Exiles (discovered 2 exits: [*Min x2]) -8/Mines (discovered 2 exits: *Mat x2) -8/Materials -7/Factory History --------- Turn | Location | Event 9 | -11/Junkyard | Discovered new exit (range 15) 50 | -11/Junkyard | Entered Materials 312 | -10/Materials | Build established: Mutant 458 | -10/Materials | Discovered new exit (range 15) 697 | -10/Materials | Discovered new exit (range 13) 975 | -10/Materials | Repaired Lgt. Treads 1003 | -10/Materials | Repaired Lrg. Storage Unit 1081 | -10/Materials | Discovered new exit (range 8) 1186 | -10/Materials | Entered Mines 1487 | -10/Mines | Discovered new exit (range 9) 1524 | -10/Mines | Entered Materials 1524 | -9/Materials | Accompanied by 2 allies 1524 | -9/Materials | Evolved 2 slots: Propulsion x1, Utility x1 1529 | -9/Materials | Led the pair of lost Derelicts to an unsafe place 1567 | -9/Materials | Identified exit to Mines 1567 | -9/Materials | Identified exit to Storage 1672 | -9/Materials | Entered Mines 1672 | -9/Mines | Accompanied by 1 ally 1702 | -9/Mines | Assembled infested the area 1712 | -9/Mines | Deemed a non-threat by the Exiles lab entrance 1712 | -9/Mines | Discovered new exit (range 5) 1720 | -9/Mines | Entered Exiles 1720 | -9/Exiles | Accompanied by 1 ally 1750 | -9/Exiles | Led the pair of lost Derelicts to a safe place 1765 | -9/Exiles | Met 8R-AWN 1790 | -9/Exiles | Met EX-HEX 1857 | -9/Exiles | Met EX-DEC 1919 | -9/Exiles | Visited The Gauntlet 2191 | -9/Exiles | Discovered new exit (range 14) 2289 | -9/Exiles | Met EX-BIN 2311 | -9/Exiles | Aligned with FarCom system 2313 | -9/Exiles | Given EX-Vault access code 2350 | -9/Exiles | Opened EX-Vault 2361 | -9/Exiles | Found Prototype Device 2398 | -9/Exiles | Warned to stay clear of 0b10 Research branches 2498 | -9/Exiles | Discovered new exit (range 14) 2516 | -9/Exiles | Left Exiles lab with Skeleton Box 2516 | -9/Exiles | Entered Mines 2587 | -8/Mines | Discovered new exit (range 9) 3157 | -8/Mines | Discovered new exit (range 10) 3304 | -8/Mines | Entered Materials 3304 | -8/Materials | Evolved 2 slots: Propulsion x1, Weapon x1 3598 | -8/Materials | Discovered new exit (range 16) 3787 | -8/Materials | Build established: Scavenger-Skirmisher 3941 | -8/Materials | Lost 4 parts (1p3n) 4276 | -8/Materials | Entered Factory 4276 | -7/Factory | Evolved 2 slots: Utility x2 4576 | -7/Factory | Build established: Scavenger-Assassin 5503 | -7/Factory | Garrison activated, responded to threat 5542 | -7/Factory | Cargo convoy interrupted 5554 | -7/Factory | Self-destructed Last Messages --------------- 05503_ Y-54 Guardian Lgt. Treads severed. 05503_ Y-54 Guardian calls for garrison reinforcements. 05503_ ALERT: Activating Garrison Access F001. 05506_ Y-54 Guardian destroyed. 05508_ K-01 Serf collects debris. 05512_ Lgt. Armor Plating destroyed. 05512_ R-06 Scavenger collects Imp. Light Armor Plating. 05514_ S-27 Virus destroyed. 05515_ K-01 Serf collects debris. 05515_ R-06 Scavenger collects Autogun. 05517_ K-01 Serf collects debris. 05517_ Aluminum Leg destroyed. 05522_ Greatsword destroyed. 05526_ ALERT: Rogue bot located, Programmers report to Factory Zone 6D. 05531_ Lgt. Nuclear Core destroyed. 05532_ VTOL Module melted. 05532_ S-27 Virus destroyed. 05542_ ALERT: Cargo convoy interrupted, initiating access lockdown. 05547_ Adv. Beam Rifle destroyed. 05550_ Reactive Plating destroyed. Map ----- +----------------------------------------------------+ | ?????????????????????????????????????????????????? | | ?????????????????????????????????????????????????? | | ?????????????????????????????????????????????????? | | ?????????????????????????????????????????????????? | | ?????????????????????????????????????????????????? | | ?????????????????????????????????????????????????? | | ?????????????????????????????????????????????????? | | ?????????????????????????????????????????????????? | | ?????????????????????????????????????????????????? | | ?????????????????????????????????????????????????? | | ?????????????????????????????????????????????????? | | ????????????????????????????x????????????????????? | | ?????????????????????????????????????????????????? | | ?????? ????????????????????????????????????????? | | ???? ????????????????????????????????????????? | | ???# ????????????????????????????????????????? | | ???# ?????????????????s??????????????????????? | | ???# ????????????????????????????????????????? | | ???# #???????????????s???????????????????????? | | ???# #???????????????????????????????????????? | | #??# #????????????????s??????????????????????? | | #### #???????????????????????????????????????? | | # #???????????????????????????????????????? | | != # ##########??????????????? #?????????????? | | != # # ############* #?????????????? | | # # """ + g=%=@[%!s*= p !! ???????? | | # #% """ # #########%[ #?????????????? | | # + """ #x #? ????????? #?????????????? | | # # x x #?"?? #????????????????????? | | # # """ ## # "R" #????????????????????? | | #### # """ ## # " " #????????????????????? | | # """ ## + #????????????????????? | | # ##x# #????????????????????? | | ########### ########?##############?????? | | #????????# #???# #?????? | | #????????# #???# #?????? | | #### #????????# ""% #???# #?????? | | ??# ########## "" ##### #?????? | | ""## % ^ "T # #?????? | | ""## "" # #?????? | | ""## "" + [ #?????? | | ""## ^ #%! #?????? | | ""?# ^ %# #?????? | | ??# ###+#######+######## # #?????? | | "??# # ???? ?????# # #?????? | | "?? # ?? ? ???# # = #?????? | | ???T #???? ?# ##+##############??? | | ???# #?? ##! %*####### #??? | | ???? # ## =*[ + """" #??? | | ???? # #####+####### """" #??? | +----------------------------------------------------+ Best States ------------- Heat Dissipation 34 Energy Generation 15 Energy Capacity 250 Matter Stores 300 Matter Capacity 300 Sight Range 16 Robot Scan Range 15 Terrain Scan Density 10 Armor Coverage 300 Resistance: KI 20 Evasion (%) 50 Targeting Accuracy 5 Recoil Reduction 2 Offensive Hacking 10 Item Schematics ----------------- None Robot Schematics ------------------ None Fabricated ------------ Nothing Alien Tech Used ----------------- None Achievements -------------- None Challenges ------------ None Game ------ Seed ArmageddonTransmissionWeb Manual? 0 Play Time 00:30:27 Cumulative 26.6 hours Start 2023.10.06 @ 01:35:20 End 2023.10.06 @ 13:56:09 Sessions 3 Manual Loads 0 Difficulty Rogue Special Mode None Game No. 53 Rogue 50 Adventurer 3 Explorer 0 Win Type - Total 0 Types 0/0/0/0/0/0/0/0/0 Lore% 22 Gallery% 31 Achievement% 23 Wizard Run 0 Options --------- ASCII 0 Keyboard 0 Movement Mouse Keybinds 0 Fullscreen 2 Font 18/SmallcapsGlow Map View 76x50 Tactical HUD 1 Map Filters NONE Filters NONE Steam 1 RUN: 61c5b2d6-4e25-4094-9506-5cebe58a4d9e